[Event "African Championship"]
[Site "followchess.com"]
[Date "2021.05.26"]
[Round "8"]
[White "Bwalya, Gillan"]
[Black "Amin, Bassem"]
[Result "0-1"]
[ECO "E91"]
[WhiteElo "2405"]
[BlackElo "2701"]
[PlyCount "157"]
[EventDate "2021.??.??"]
[TimeControl "7200+30"]
[WhiteClock "0:01:46"]
[BlackClock "0:00:51"]

1. d4 Nf6 {[%emt 0:32:48]} 2. c4 {[%emt 0:34:09]} g6 {[%emt 0:00:24]} 3. Nc3 {
[%emt 0:00:26]} Bg7 {[%emt 0:00:03]} 4. e4 {[%emt 0:01:33]} d6 {[%emt 0:00:03]}
5. Nf3 {[%emt 0:00:16]} O-O {[%emt 0:00:08]} 6. Be2 {[%emt 0:00:15]} Nbd7 {
[%emt 0:02:38]} 7. O-O {[%emt 0:00:43]} e5 {[%emt 0:00:04]} 8. Be3 {[%emt 0:08:
08]} h6 {[%emt 0:03:59]} 9. dxe5 {[%emt 0:06:02]} dxe5 {[%emt 0:02:36]} 10. Nd2
{[%emt 0:08:24]} c6 {[%emt 0:03:13]} 11. b4 {[%emt 0:04:09]} Qe7 {[%emt 0:00:
24]} 12. Qa4 {[%emt 0:00:53]} Rd8 {[%emt 0:08:25]} 13. Nb3 {[%emt 0:02:30]} Nf8
{[%emt 0:04:21]} 14. Bc5 {[%emt 0:10:14]} Qc7 {[%emt 0:04:40]} 15. b5 {[%emt 0:
00:22]} Ne6 {[%emt 0:06:05]} 16. bxc6 {[%emt 0:05:35]} Nxc5 {[%emt 0:04:50]}
17. Nxc5 {[%emt 0:00:44]} bxc6 {[%emt 0:02:05]} 18. Nb3 {[%emt 0:06:34]} Be6 {
[%emt 0:05:17]} 19. Rac1 {[%emt 0:03:15]} Bf8 {[%emt 0:02:16]} 20. c5 {[%emt 0:
11:01]} Bxb3 {[%emt 0:01:18]} 21. axb3 {[%emt 0:06:05]} Bxc5 {[%emt 0:04:39]}
22. Qc4 {[%emt 0:04:12]} Bb6 {[%emt 0:05:35]} 23. Na4 {[%emt 0:01:57]} Rac8 {
[%emt 0:08:40]} 24. Qc2 {[%emt 0:00:27]} Bd4 {[%emt 0:03:52]} 25. Ba6 {[%emt 0:
04:21]} Rb8 {[%emt 0:00:18]} 26. h3 {[%emt 0:00:21]} Rd6 {[%emt 0:01:40]} 27.
Bc4 {[%emt 0:00:40]} Rbd8 {[%emt 0:01:05]} 28. Qe2 {[%emt 0:01:41]} Nh5 {
[%emt 0:02:58]} 29. Kh2 {[%emt 0:01:04]} Qe7 {[%emt 0:01:15]} 30. Rcd1 {
[%emt 0:01:45]} Nf4 {[%emt 0:01:26]} 31. Qg4 {[%emt 0:00:50]} h5 {[%emt 0:00:
43]} 32. Qf3 {[%emt 0:00:05]} Rf6 {[%emt 0:01:58]} 33. Rd2 {[%emt 0:01:21]} Kg7
{[%emt 0:01:19]} 34. Qd1 {[%emt 0:00:07]} h4 {[%emt 0:04:21]} 35. Qg4 {[%emt 0:
01:00]} Rh8 {[%emt 0:02:12]} 36. Nb2 {[%emt 0:01:28]} Bxb2 {[%emt 0:07:33]} 37.
Rxb2 {[%emt 0:00:05]} Rd6 {[%emt 0:00:13]} 38. Ra2 {[%emt 0:01:55]} Rhd8 {
[%emt 0:02:04]} 39. Rfa1 {[%emt 0:00:35]} R8d7 {[%emt 0:00:06]} 40. Qf3 {
[%emt 0:00:00]} Rd2 {[%emt 0:00:00]} 41. Rxd2 {[%emt 0:00:00]} Rxd2 {[%emt 0:
00:00]} 42. Qe3 {[%emt 0:00:00]} Rd4 {[%emt 0:00:00]} 43. Ra5 {[%emt 0:00:00]}
Nh5 {[%emt 0:00:00]} 44. Ra6 {[%emt 0:00:00]} Nf6 {[%emt 0:00:00]} 45. Rxc6 {
[%emt 0:00:00]} Nxe4 {[%emt 0:00:00]} 46. Ra6 {[%emt 0:01:02]} Qc7 {[%emt 0:00:
00]} 47. Qf3 {[%emt 0:00:13]} Nd6 {[%emt 0:00:00]} 48. Rc6 {[%emt 0:01:27]} Qe7
{[%emt 0:00:17]} 49. Ba6 {[%emt 0:00:45]} e4 {[%emt 0:03:03]} 50. Qf4 {[%emt 0:
00:14]} g5 {[%emt 0:00:59]} 51. Qc1 {[%emt 0:01:29]} Qe5+ {[%emt 0:00:22]} 52.
Kg1 {[%emt 0:00:14]} Rd5 {[%emt 0:01:24]} 53. Be2 {[%emt 0:01:20]} Qd4 {
[%emt 0:02:01]} 54. Bh5 {[%emt 0:00:14]} Ra5 {[%emt 0:00:28]} 55. Qe1 {[%emt 0:
01:39]} Ra2 {[%emt 0:00:36]} 56. Bg4 {[%emt 0:01:03]} Qe5 {[%emt 0:00:42]} 57.
Qe3 {[%emt 0:00:39]} Ra1+ {[%emt 0:00:22]} 58. Rc1 {[%emt 0:00:07]} Rxc1+ {
[%emt 0:00:21]} 59. Qxc1 {[%emt 0:00:08]} Nb5 {[%emt 0:00:13]} 60. Be2 {
[%emt 0:01:13]} Nd4 {[%emt 0:00:31]} 61. Bc4 {[%emt 0:00:08]} a5 {[%emt 0:00:
18]} 62. Qe3 {[%emt 0:00:32]} Kg6 {[%emt 0:00:26]} 63. Qc1 {[%emt 0:01:34]} Nf5
{[%emt 0:00:59]} 64. Be2 {[%emt 0:00:48]} Nd4 {[%emt 0:00:48]} 65. Bc4 {
[%emt 0:00:18]} Kf6 {[%emt 0:00:32]} 66. Qd1 {[%emt 0:00:58]} e3 {[%emt 0:00:
29]} 67. Qh5 {[%emt 0:00:42]} exf2+ {[%emt 0:00:13]} 68. Kxf2 {[%emt 0:00:01]}
Qf4+ {[%emt 0:00:30]} 69. Kg1 {[%emt 0:00:15]} Qc1+ {[%emt 0:00:43]} 70. Kh2 {
[%emt 0:00:17]} Qf4+ {[%emt 0:00:08]} 71. Kg1 {[%emt 0:00:15]} Ke7 {[%emt 0:00:
13]} 72. Qd1 {[%emt 0:01:24]} Qe3+ {[%emt 0:00:14]} 73. Kh2 {[%emt 0:00:11]}
Qe5+ {[%emt 0:00:08]} 74. Kg1 {[%emt 0:00:10]} Nf5 {[%emt 0:00:06]} 75. Kh1 {
[%emt 0:01:25]} Ng3+ {[%emt 0:00:12]} 76. Kg1 {[%emt 0:00:06]} a4 {[%emt 0:00:
43]} 77. Kf2 {[%emt 0:01:48]} a3 {[%emt 0:00:35]} 78. Qc2 {[%emt 0:00:18]} a2 {
[%emt 0:01:04]} 79. Qc1 0-1

[Event "African Championship"]
[Site "followchess.com"]
[Date "2021.05.26"]
[Round "8"]
[White "Calicoca, Wilton Inacio"]
[Black "Ajibola, Olanrewaju"]
[Result "0-1"]
[ECO "B01"]
[WhiteElo "2122"]
[BlackElo "2337"]
[PlyCount "114"]
[EventDate "2021.??.??"]
[TimeControl "7200+30"]
[WhiteClock "0:47:36"]
[BlackClock "0:03:00"]

1. e4 {[%emt 0:29:55]} d5 {[%emt 0:30:00]} 2. exd5 {[%emt 0:00:09]} Qxd5 {
[%emt 0:00:04]} 3. Nc3 {[%emt 0:00:11]} Qa5 {[%emt 0:00:06]} 4. d4 {[%emt 0:01:
11]} c6 {[%emt 0:00:11]} 5. Bc4 {[%emt 0:00:38]} Nf6 {[%emt 0:00:15]} 6. Nf3 {
[%emt 0:00:27]} Bf5 {[%emt 0:00:12]} 7. Qe2 {[%emt 0:07:31]} e6 {[%emt 0:00:29]
} 8. Bb3 {[%emt 0:00:20]} Ne4 {[%emt 0:01:58]} 9. O-O {[%emt 0:01:59]} Nxc3 {
[%emt 0:00:16]} 10. bxc3 {[%emt 0:00:02]} Be7 {[%emt 0:03:18]} 11. Bd2 {
[%emt 0:01:05]} Nd7 {[%emt 0:01:18]} 12. c4 {[%emt 0:00:30]} Qc7 {[%emt 0:00:
07]} 13. d5 {[%emt 0:00:32]} O-O {[%emt 0:00:45]} 14. Nd4 {[%emt 0:12:29]} Bc5
{[%emt 0:02:46]} 15. Nxf5 {[%emt 0:00:53]} exf5 {[%emt 0:00:04]} 16. Rae1 {
[%emt 0:04:26]} Bd6 {[%emt 0:09:17]} 17. h3 {[%emt 0:02:24]} Nf6 {[%emt 0:01:
21]} 18. Be3 {[%emt 0:07:13]} c5 {[%emt 0:04:00]} 19. Qf3 {[%emt 0:00:51]} Qd7
{[%emt 0:04:47]} 20. Bc1 {[%emt 0:04:11]} Rfe8 {[%emt 0:01:04]} 21. c3 {
[%emt 0:00:33]} Rxe1 {[%emt 0:13:57]} 22. Rxe1 {[%emt 0:00:04]} Re8 {[%emt 0:
00:11]} 23. Rd1 {[%emt 0:10:57]} Qe7 {[%emt 0:05:28]} 24. Bf4 {[%emt 0:02:18]}
Ne4 {[%emt 0:09:37]} 25. Ba4 {[%emt 0:04:22]} Rd8 {[%emt 0:00:27]} 26. Re1 {
[%emt 0:00:25]} Qf6 {[%emt 0:00:26]} 27. Bxd6 {[%emt 0:12:36]} Nxd6 {[%emt 0:
00:19]} 28. Qe3 {[%emt 0:00:07]} g6 {[%emt 0:01:39]} 29. Qe7 {[%emt 0:03:48]}
Kg7 {[%emt 0:00:21]} 30. Re6 {[%emt 0:08:33]} Qxe7 {[%emt 0:00:20]} 31. Rxe7 {
[%emt 0:00:01]} a6 {[%emt 0:04:05]} 32. Rc7 {[%emt 0:05:21]} b5 {[%emt 0:03:04]
} 33. Bc2 {[%emt 0:07:48]} Rc8 {[%emt 0:06:56]} 34. Ra7 {[%emt 0:00:39]} Nxc4 {
[%emt 0:00:38]} 35. Rxa6 {[%emt 0:00:56]} Rd8 {[%emt 0:00:36]} 36. Rc6 {
[%emt 0:01:01]} Na3 {[%emt 0:01:46]} 37. Rxc5 {[%emt 0:01:29]} Nxc2 {[%emt 0:
00:10]} 38. Rxb5 {[%emt 0:00:13]} Rc8 {[%emt 0:02:41]} 39. Rb3 {[%emt 0:00:50]}
Kf6 {[%emt 0:01:37]} 40. a4 {[%emt 0:00:00]} Ke5 {[%emt 0:00:00]} 41. Rb7 {
[%emt 0:00:00]} Kxd5 {[%emt 0:00:00]} 42. Rxf7 {[%emt 0:00:00]} h5 {[%emt 0:00:
00]} 43. Rf6 {[%emt 0:00:00]} Rc6 {[%emt 0:00:00]} 44. Rxc6 {[%emt 0:00:00]}
Kxc6 {[%emt 0:00:00]} 45. Kh2 {[%emt 0:00:00]} Ne1 {[%emt 0:00:00]} 46. Kg3 {
[%emt 0:00:00]} g5 {[%emt 0:00:00]} 47. f4 {[%emt 0:00:00]} h4+ {[%emt 0:00:00]
} 48. Kf2 {[%emt 0:00:00]} Nd3+ 49. Kf3 {[%emt 0:00:00]} Nxf4 {[%emt 0:00:00]}
50. g3 {[%emt 0:00:00]} hxg3 {[%emt 0:00:00]} 51. Kxg3 {[%emt 0:03:13]} Ne2+
52. Kg2 {[%emt 0:01:14]} Nxc3 {[%emt 0:00:00]} 53. a5 {[%emt 0:00:11]} Ne4 {
[%emt 0:00:00]} 54. h4 {[%emt 0:00:15]} gxh4 {[%emt 0:00:00]} 55. Kh3 {[%emt 0:
00:03]} f4 {[%emt 0:00:00]} 56. Kg4 {[%emt 0:00:18]} h3 {[%emt 0:00:00]} 57.
Kxh3 {[%emt 0:01:18]} f3 {[%emt 0:00:00]} 0-1

[Event "African Championship"]
[Site "followchess.com"]
[Date "2021.05.26"]
[Round "8"]
[White "Fawzy, Adham"]
[Black "Barrish, Daniel"]
[Result "1-0"]
[ECO "B12"]
[WhiteElo "2473"]
[BlackElo "2306"]
[PlyCount "89"]
[EventDate "2021.??.??"]
[TimeControl "7200+30"]
[WhiteClock "0:30:54"]
[BlackClock "0:54:33"]

1. e4 {[%emt 0:29:34]} c6 {[%emt 0:32:02]} 2. d4 {[%emt 0:00:27]} d5 {[%emt 0:
00:06]} 3. f3 {[%emt 0:00:31]} dxe4 {[%emt 0:01:13]} 4. fxe4 {[%emt 0:04:33]}
e5 {[%emt 0:00:16]} 5. Nf3 {[%emt 0:00:03]} Bg4 {[%emt 0:00:07]} 6. Bc4 {
[%emt 0:01:13]} Nd7 {[%emt 0:06:59]} 7. O-O {[%emt 0:08:09]} Ngf6 {[%emt 0:02:
41]} 8. c3 {[%emt 0:00:30]} Bd6 {[%emt 0:02:28]} 9. Bg5 {[%emt 0:04:15]} O-O {
[%emt 0:03:42]} 10. Nbd2 {[%emt 0:01:18]} b5 {[%emt 0:01:54]} 11. Bd3 {[%emt 0:
05:01]} Qc7 {[%emt 0:03:50]} 12. Qe1 {[%emt 0:03:13]} h6 {[%emt 0:01:47]} 13.
Be3 {[%emt 0:11:36]} Be6 {[%emt 0:07:48]} 14. h3 {[%emt 0:05:24]} Nh5 {[%emt 0:
10:12]} 15. Qh4 {[%emt 0:05:55]} exd4 {[%emt 0:08:53]} 16. Bxh6 {[%emt 0:01:12]
} Ndf6 {[%emt 0:22:19]} 17. e5 {[%emt 0:09:04]} Bxe5 {[%emt 0:00:05]} 18. Ne4 {
[%emt 0:04:28]} gxh6 {[%emt 0:07:48]} 19. cxd4 {[%emt 0:01:43]} Bg3 {[%emt 0:
02:18]} 20. Nxf6+ {[%emt 0:00:55]} Nxf6 {[%emt 0:00:09]} 21. Qxh6 {[%emt 0:00:
06]} Qf4 {[%emt 0:00:25]} 22. Ng5 {[%emt 0:00:46]} Qe3+ {[%emt 0:00:08]} 23.
Kh1 {[%emt 0:00:16]} Qxd3 {[%emt 0:00:21]} 24. Rxf6 {[%emt 0:00:13]} Bd5 {
[%emt 0:01:55]} 25. Ne6 {[%emt 0:00:24]} fxe6 {[%emt 0:03:30]} 26. Qg5+ {
[%emt 0:01:04]} Kh8 {[%emt 0:00:11]} 27. Rh6+ {[%emt 0:00:03]} Qh7 {[%emt 0:00:
08]} 28. Rxh7+ {[%emt 0:00:17]} Kxh7 {[%emt 0:00:07]} 29. Qxg3 {[%emt 0:00:04]}
Rf7 {[%emt 0:01:35]} 30. Re1 {[%emt 0:04:24]} Rg7 {[%emt 0:02:13]} 31. Qh4+ {
[%emt 0:00:02]} Kg8 {[%emt 0:00:15]} 32. Re2 {[%emt 0:00:03]} Bxa2 {[%emt 0:04:
53]} 33. Re5 {[%emt 0:01:14]} Bd5 {[%emt 0:00:28]} 34. Rg5 {[%emt 0:00:23]} a5
{[%emt 0:01:00]} 35. Kh2 {[%emt 0:00:19]} b4 {[%emt 0:01:34]} 36. g4 {[%emt 0:
00:56]} Rxg5 {[%emt 0:01:58]} 37. Qxg5+ {[%emt 0:00:02]} Kf7 {[%emt 0:00:33]}
38. Qh6 {[%emt 0:00:30]} Kg8 {[%emt 0:00:31]} 39. Qg6+ {[%emt 0:01:21]} Kh8 {
[%emt 0:00:17]} 40. Qf7 {[%emt 0:00:00]} a4 {[%emt 0:00:00]} 41. g5 {[%emt 0:
00:00]} e5 {[%emt 0:00:00]} 42. Qe7 {[%emt 0:00:00]} a3 {[%emt 0:00:00]} 43. g6
{[%emt 0:00:00]} Kg8 {[%emt 0:00:00]} 44. Qh7+ {[%emt 0:00:00]} Kf8 {[%emt 0:
00:00]} 45. g7+ {[%emt 0:00:00]} 1-0

[Event "African Championship"]
[Site "followchess.com"]
[Date "2021.05.26"]
[Round "8"]
[White "Ikhimiukor, Ehidiamen"]
[Black "Mwali, Chitumbo"]
[Result "0-1"]
[ECO "E10"]
[WhiteElo "1946"]
[BlackElo "2285"]
[PlyCount "134"]
[EventDate "2021.??.??"]
[TimeControl "7200+30"]
[WhiteClock "0:25:56"]
[BlackClock "0:13:59"]

1. d4 {[%emt 0:34:49]} Nf6 {[%emt 0:29:35]} 2. Nf3 {[%emt 0:00:51]} e6 {
[%emt 0:00:09]} 3. c4 {[%emt 0:00:11]} c5 {[%emt 0:00:20]} 4. e3 {[%emt 0:04:
33]} cxd4 {[%emt 0:03:34]} 5. exd4 {[%emt 0:00:14]} d6 {[%emt 0:00:03]} 6. Nc3
{[%emt 0:00:33]} Be7 {[%emt 0:01:30]} 7. Be2 {[%emt 0:01:21]} O-O {[%emt 0:00:
11]} 8. O-O {[%emt 0:00:46]} b6 {[%emt 0:01:46]} 9. Bf4 {[%emt 0:03:55]} Bb7 {
[%emt 0:03:27]} 10. Qd2 {[%emt 0:00:51]} Nbd7 {[%emt 0:01:09]} 11. Rfd1 {
[%emt 0:00:55]} Rc8 {[%emt 0:00:58]} 12. b3 {[%emt 0:10:13]} a6 {[%emt 0:00:33]
} 13. Rac1 {[%emt 0:00:34]} Re8 {[%emt 0:01:07]} 14. Qd3 {[%emt 0:00:54]} Bf8 {
[%emt 0:04:56]} 15. Bg5 {[%emt 0:04:59]} Qc7 {[%emt 0:05:00]} 16. Nd2 {[%emt 0:
01:32]} Qb8 {[%emt 0:04:49]} 17. Bf3 {[%emt 0:01:19]} Bxf3 {[%emt 0:00:51]} 18.
Qxf3 {[%emt 0:00:38]} b5 {[%emt 0:01:32]} 19. Rb1 {[%emt 0:01:09]} Qc7 {
[%emt 0:13:45]} 20. Rbc1 {[%emt 0:03:26]} bxc4 {[%emt 0:04:09]} 21. bxc4 {
[%emt 0:04:15]} Qa5 {[%emt 0:02:46]} 22. h4 {[%emt 0:01:52]} h6 {[%emt 0:01:48]
} 23. Bxf6 {[%emt 0:04:12]} Nxf6 {[%emt 0:00:05]} 24. Rb1 {[%emt 0:00:44]} Rb8
{[%emt 0:04:18]} 25. Rb3 {[%emt 0:04:27]} Rxb3 {[%emt 0:16:20]} 26. axb3 {
[%emt 0:00:15]} Qb6 {[%emt 0:01:07]} 27. Qd3 {[%emt 0:12:39]} g6 {[%emt 0:04:
19]} 28. Nce4 {[%emt 0:06:11]} Nd7 {[%emt 0:03:55]} 29. Nf3 {[%emt 0:04:21]}
Bg7 {[%emt 0:02:05]} 30. Rc1 {[%emt 0:10:36]} f5 {[%emt 0:05:55]} 31. Ned2 {
[%emt 0:05:42]} a5 {[%emt 0:03:31]} 32. Ra1 {[%emt 0:00:48]} Kh8 {[%emt 0:02:
42]} 33. Qc3 {[%emt 0:01:22]} e5 {[%emt 0:04:18]} 34. dxe5 {[%emt 0:00:58]} Ra8
{[%emt 0:00:44]} 35. Ra4 {[%emt 0:01:03]} dxe5 {[%emt 0:00:37]} 36. Qe3 {
[%emt 0:03:06]} Nc5 {[%emt 0:01:00]} 37. Ra2 {[%emt 0:00:11]} e4 {[%emt 0:00:
59]} 38. Ne1 {[%emt 0:00:50]} Rd8 {[%emt 0:00:57]} 39. Nc2 {[%emt 0:00:36]} Qc7
{[%emt 0:00:40]} 40. b4 {[%emt 0:00:00]} Ne6 {[%emt 0:00:00]} 41. bxa5 {
[%emt 0:00:00]} Rd3 {[%emt 0:00:00]} 42. Qb6 {[%emt 0:00:00]} Qxb6 {[%emt 0:00:
00]} 43. axb6 {[%emt 0:00:00]} Rxd2 {[%emt 0:00:00]} 44. Ra8+ {[%emt 0:00:00]}
Kh7 {[%emt 0:00:00]} 45. Ne3 {[%emt 0:00:00]} Rb2 {[%emt 0:00:00]} 46. Nd5 {
[%emt 0:00:00]} f4 {[%emt 0:00:00]} 47. Re8 {[%emt 0:00:00]} Nc5 {[%emt 0:00:
00]} 48. Re7 {[%emt 0:00:00]} Kg8 49. Rc7 {[%emt 0:00:00]} Bd4 {[%emt 0:00:00]}
50. Ne7+ {[%emt 0:00:00]} Kf8 {[%emt 0:00:00]} 51. Nxg6+ {[%emt 0:00:00]} Ke8 {
[%emt 0:00:00]} 52. Nxf4 {[%emt 0:00:00]} Rxf2 {[%emt 0:00:00]} 53. Rc8+ {
[%emt 0:00:00]} Kd7 {[%emt 0:00:00]} 54. Rc7+ {[%emt 0:00:00]} Kd8 {[%emt 0:00:
00]} 55. Nd5 {[%emt 0:00:00]} Rf7+ {[%emt 0:00:00]} 56. Kh1 {[%emt 0:00:00]}
Rf1+ {[%emt 0:00:00]} 57. Kh2 {[%emt 0:00:00]} Be5+ {[%emt 0:00:00]} 58. Kh3 {
[%emt 0:00:00]} Bxc7 {[%emt 0:00:00]} 59. bxc7+ {[%emt 0:00:00]} Kd7 {[%emt 0:
00:00]} 60. Kg4 {[%emt 0:00:00]} Ne6 {[%emt 0:00:00]} 61. Kh5 {[%emt 0:00:00]}
Nf4+ {[%emt 0:00:00]} 62. Kxh6 Nxd5 63. cxd5 {[%emt 0:00:52]} e3 {[%emt 0:00:
00]} 64. g4 {[%emt 0:00:29]} e2 {[%emt 0:00:00]} 65. g5 {[%emt 0:00:03]} e1=Q {
[%emt 0:00:00]} 66. g6 {[%emt 0:00:04]} Qxh4+ {[%emt 0:00:00]} 67. Kg7 {
[%emt 0:00:12]} Qf6+ {[%emt 0:00:00]} 0-1

[Event "African Championship"]
[Site "followchess.com"]
[Date "2021.05.26"]
[Round "8"]
[White "Mhango, Banele"]
[Black "Kawuma, Patrick"]
[Result "1/2-1/2"]
[ECO "D02"]
[WhiteElo "2117"]
[BlackElo "2323"]
[PlyCount "82"]
[EventDate "2021.??.??"]
[TimeControl "7200+30"]
[WhiteClock "0:38:50"]
[BlackClock "0:43:54"]

1. d4 {[%emt 0:29:34]} d5 {[%emt 0:30:00]} 2. Nf3 {[%emt 0:00:08]} Nf6 {
[%emt 0:01:24]} 3. c4 {[%emt 0:00:23]} e6 {[%emt 0:00:21]} 4. g3 {[%emt 0:00:
09]} Bb4+ {[%emt 0:00:13]} 5. Bd2 {[%emt 0:00:07]} Be7 {[%emt 0:00:05]} 6. Bg2
{[%emt 0:00:09]} O-O {[%emt 0:00:16]} 7. Qc2 {[%emt 0:00:30]} Nbd7 {[%emt 0:00:
22]} 8. h4 {[%emt 0:01:24]} c5 {[%emt 0:16:38]} 9. cxd5 {[%emt 0:01:24]} exd5 {
[%emt 0:01:18]} 10. O-O {[%emt 0:02:48]} b6 {[%emt 0:04:23]} 11. Nc3 {[%emt 0:
00:24]} Bb7 {[%emt 0:00:06]} 12. Rfd1 {[%emt 0:02:40]} Rc8 {[%emt 0:03:12]} 13.
Bh3 {[%emt 0:06:28]} a6 {[%emt 0:09:02]} 14. Bg5 {[%emt 0:02:42]} c4 {[%emt 0:
03:24]} 15. Bxf6 {[%emt 0:02:18]} Bxf6 {[%emt 0:03:50]} 16. Qf5 {[%emt 0:04:20]
} Nb8 {[%emt 0:02:51]} 17. Ng5 {[%emt 0:02:11]} g6 {[%emt 0:05:18]} 18. Qf4 {
[%emt 0:00:17]} Rc7 {[%emt 0:00:35]} 19. Bg2 {[%emt 0:09:28]} Rd7 {[%emt 0:02:
59]} 20. Nh3 {[%emt 0:01:51]} Bg7 {[%emt 0:02:23]} 21. Qg5 {[%emt 0:01:38]} b5
{[%emt 0:01:51]} 22. a3 {[%emt 0:03:34]} Qb6 {[%emt 0:04:28]} 23. e3 {[%emt 0:
00:56]} Rfd8 {[%emt 0:01:04]} 24. Nf4 {[%emt 0:03:01]} h6 {[%emt 0:00:02]} 25.
Qg4 {[%emt 0:00:17]} a5 {[%emt 0:00:15]} 26. Qf3 {[%emt 0:10:26]} Na6 {[%emt 0:
00:48]} 27. g4 {[%emt 0:04:06]} Nc7 {[%emt 0:07:46]} 28. Qg3 {[%emt 0:03:01]}
Rd6 {[%emt 0:01:53]} 29. Bf3 {[%emt 0:03:34]} Bc6 {[%emt 0:01:48]} 30. g5 {
[%emt 0:00:55]} h5 {[%emt 0:00:56]} 31. Qg2 {[%emt 0:01:27]} Qb7 {[%emt 0:03:
33]} 32. Nce2 {[%emt 0:04:11]} Ne6 {[%emt 0:01:02]} 33. Nxe6 {[%emt 0:02:33]}
Rxe6 {[%emt 0:00:10]} 34. Nf4 {[%emt 0:00:09]} Ree8 {[%emt 0:01:28]} 35. Rdc1 {
[%emt 0:02:35]} Rd6 {[%emt 0:01:16]} 36. Rab1 {[%emt 0:03:55]} b4 {[%emt 0:01:
07]} 37. axb4 {[%emt 0:02:31]} axb4 {[%emt 0:00:03]} 38. Ra1 {[%emt 0:00:38]}
Ra8 {[%emt 0:03:30]} 39. Rxa8+ {[%emt 0:07:03]} Qxa8 {[%emt 0:00:01]} 40. Qf1 {
[%emt 0:00:00]} Rd8 {[%emt 0:00:00]} 41. Ra1 {[%emt 0:00:00]} Qb8 1/2-1/2

[Event "African Championship"]
[Site "followchess.com"]
[Date "2021.05.26"]
[Round "8"]
[White "Mphungu, Gerrard"]
[Black "Wageih, Kareim"]
[Result "0-1"]
[ECO "E11"]
[WhiteElo "2096"]
[BlackElo "2425"]
[PlyCount "80"]
[EventDate "2021.??.??"]
[TimeControl "7200+30"]
[WhiteClock "0:57:46"]
[BlackClock "0:36:55"]

1. d4 {[%emt 0:29:33]} Nf6 {[%emt 0:33:47]} 2. c4 {[%emt 0:00:32]} e6 {[%emt 0:
00:13]} 3. Nf3 {[%emt 0:01:01]} Bb4+ {[%emt 0:00:14]} 4. Bd2 {[%emt 0:00:39]}
Qe7 {[%emt 0:01:42]} 5. Nc3 {[%emt 0:03:39]} O-O {[%emt 0:03:07]} 6. Qc2 {
[%emt 0:05:43]} d6 {[%emt 0:11:12]} 7. a3 {[%emt 0:03:31]} Bxc3 {[%emt 0:02:33]
} 8. Bxc3 {[%emt 0:00:25]} Nbd7 {[%emt 0:09:17]} 9. e4 {[%emt 0:18:48]} e5 {
[%emt 0:00:41]} 10. d5 {[%emt 0:00:25]} Nc5 {[%emt 0:01:37]} 11. Nd2 {[%emt 0:
01:51]} a5 {[%emt 0:00:43]} 12. b4 {[%emt 0:11:36]} axb4 {[%emt 0:01:10]} 13.
axb4 {[%emt 0:00:03]} Rxa1+ {[%emt 0:00:08]} 14. Bxa1 {[%emt 0:00:04]} Na6 {
[%emt 0:00:28]} 15. Bc3 {[%emt 0:02:52]} Nh5 {[%emt 0:07:22]} 16. g3 {[%emt 0:
00:32]} f5 {[%emt 0:01:45]} 17. Bg2 {[%emt 0:04:15]} f4 {[%emt 0:01:32]} 18.
O-O {[%emt 0:06:14]} Bg4 {[%emt 0:07:17]} 19. Qd3 {[%emt 0:08:23]} Qg5 {
[%emt 0:08:21]} 20. f3 {[%emt 0:06:20]} fxg3 {[%emt 0:04:27]} 21. fxg4 {
[%emt 0:02:08]} Nf4 {[%emt 0:00:16]} 22. Qf3 {[%emt 0:08:35]} Qh6 {[%emt 0:00:
56]} 23. hxg3 {[%emt 0:07:32]} Nh3+ {[%emt 0:00:40]} 24. Bxh3 {[%emt 0:00:23]}
Rxf3 {[%emt 0:00:04]} 25. Rxf3 {[%emt 0:00:02]} Qxh3 {[%emt 0:00:14]} 26. Kf2 {
[%emt 0:01:59]} Nb8 {[%emt 0:02:31]} 27. g5 {[%emt 0:00:31]} Qg4 {[%emt 0:00:
56]} 28. Ke3 {[%emt 0:00:32]} Qxg5+ {[%emt 0:00:12]} 29. Kd3 {[%emt 0:00:02]}
Nd7 {[%emt 0:00:09]} 30. Nf1 {[%emt 0:00:06]} Nf6 {[%emt 0:00:36]} 31. Ne3 {
[%emt 0:00:36]} Qg6 {[%emt 0:00:17]} 32. Nf5 {[%emt 0:00:08]} Qg4 {[%emt 0:00:
27]} 33. Re3 {[%emt 0:00:49]} Nxe4 {[%emt 0:02:36]} 34. Ne7+ {[%emt 0:00:34]}
Kf7 {[%emt 0:00:12]} 35. Rxe4 {[%emt 0:00:10]} Qd1+ {[%emt 0:00:06]} 36. Bd2 {
[%emt 0:00:03]} Kxe7 {[%emt 0:00:24]} 37. g4 {[%emt 0:00:24]} Qf3+ {[%emt 0:02:
53]} 38. Be3 {[%emt 0:01:24]} h6 {[%emt 0:00:38]} 39. c5 {[%emt 0:00:20]} Qd1+
{[%emt 0:00:22]} 40. Bd2 {[%emt 0:00:00]} Qb3+ {[%emt 0:00:00] -error} 0-1

[Event "African Championship"]
[Site "followchess.com"]
[Date "2021.05.26"]
[Round "8"]
[White "Mulenga, Prince Daniel"]
[Black "Methu, Joseph Muragu"]
[Result "1/2-1/2"]
[ECO "A40"]
[WhiteElo "2246"]
[BlackElo "2119"]
[PlyCount "60"]
[EventDate "2021.??.??"]
[TimeControl "7200+30"]
[WhiteClock "0:27:40"]
[BlackClock "0:24:38"]

1. d4 {[%emt 0:29:31]} g6 {[%emt 0:35:07]} 2. e4 {[%emt 0:00:19]} Bg7 {[%emt 0:
00:06]} 3. c3 {[%emt 0:00:28]} c5 {[%emt 0:00:36]} 4. dxc5 {[%emt 0:00:12]} Na6
{[%emt 0:01:44]} 5. Be3 {[%emt 0:03:09]} Qc7 {[%emt 0:01:47]} 6. Na3 {[%emt 0:
01:20]} Nxc5 {[%emt 0:03:22]} 7. Nb5 {[%emt 0:00:06]} Qc6 8. Qd5 Ne6 {[%emt 0:
04:35]} 9. f3 {[%emt 0:13:49]} a6 {[%emt 0:06:42]} 10. Qxc6 {[%emt 0:00:29]}
dxc6 {[%emt 0:02:44]} 11. Na3 {[%emt 0:00:17]} b5 {[%emt 0:00:36]} 12. Nc2 {
[%emt 0:00:07]} Nf6 {[%emt 0:00:41]} 13. a4 {[%emt 0:00:40]} Bd7 {[%emt 0:05:
08]} 14. Nh3 {[%emt 0:09:33]} O-O {[%emt 0:02:32]} 15. Nf2 {[%emt 0:00:44]} c5
{[%emt 0:01:40]} 16. a5 {[%emt 0:03:14]} Bc6 {[%emt 0:05:42]} 17. Be2 {[%emt 0:
04:09]} Rfd8 {[%emt 0:03:33]} 18. O-O {[%emt 0:00:43]} g5 {[%emt 0:06:48]} 19.
Rfd1 {[%emt 0:03:36]} Kf8 {[%emt 0:01:17]} 20. Nd3 {[%emt 0:02:02]} Nd7 {
[%emt 0:03:44]} 21. Rd2 {[%emt 0:09:59]} Ne5 {[%emt 0:05:16]} 22. Nxe5 {
[%emt 0:05:22]} Bxe5 {[%emt 0:00:31]} 23. g3 {[%emt 0:09:42]} Rxd2 {[%emt 0:04:
10]} 24. Bxd2 {[%emt 0:00:07]} Rd8 {[%emt 0:00:11]} 25. Be3 {[%emt 0:00:36]}
Bf6 {[%emt 0:00:43]} 26. Kf2 {[%emt 0:07:13]} g4 {[%emt 0:01:38]} 27. fxg4 {
[%emt 0:02:09]} Bxe4 {[%emt 0:01:24]} 28. Ne1 {[%emt 0:00:02]} Bg5 {[%emt 0:03:
58]} 29. h4 {[%emt 0:00:42]} Bxe3+ {[%emt 0:00:44]} 30. Kxe3 {[%emt 0:00:02]}
Bb7 {[%emt 0:00:21] -error} 1/2-1/2